bitfinex/quotes_BTCUSD_20220218
["timestamp","ask_amount","ask_price","bid_price","bid_amount"]
[1645199642507,0.2853482,39867.0,39863.0,0.001]
[1645199642706,0.08,39864.0,39863.0,0.001]
[1645199643351,0.1262,39864.0,39863.0,0.001]
[1645199644154,0.1262,39864.0,39863.0,0.101]
[1645199644354,0.08,39864.0,39863.0,0.34246439]
[1645199644555,0.08,39864.0,39863.0,0.64071313]
[1645199644753,0.001,39869.0,39864.0,1.6]
[1645199644955,0.001,39869.0,39868.0,0.19025338]
[1645199645153,0.0107893,39877.0,39868.0,0.19025338]
[1645199645353,0.0107893,39877.0,39874.0,0.1]
[1645199645553,0.0107893,39877.0,39876.0,0.1]
[1645199645857,0.0735463,39877.0,39876.0,0.1]
[1645199646154,0.0755463,39877.0,39875.0,0.10268287]
[1645199646354,0.0755463,39877.0,39876.0,0.1]
[1645199646552,0.1455463,39877.0,39876.0,0.1]
[1645199646804,0.1455463,39877.0,39875.0,0.10268287]
[1645199647007,0.0755463,39877.0,39875.0,0.10268287]
[1645199647206,0.1235463,39877.0,39875.0,0.10268287]
[1645199648208,0.1235463,39877.0,39876.0,0.1]
[1645199648409,0.1235463,39877.0,39876.0,0.098682]
[1645199648606,0.112757,39877.0,39876.0,0.098682]
[1645199648808,0.062757,39877.0,39875.0,0.10268287]
[1645199649006,0.062757,39877.0,39876.0,0.18893538]
[1645199649209,0.051,39882.0,39877.0,0.06275]
[1645199649409,0.16958831,39889.0,39881.0,0.098682]
[1645199649610,0.04387,39896.0,39888.0,0.37277944]
[1645199649809,0.05021971,39892.0,39886.0,0.31392444]
[1645199650008,0.5,39895.0,39886.0,0.31392444]
[1645199650009,0.125472,39891.0,39886.0,0.0092]
[1645199650211,0.125472,39891.0,39883.0,0.7848]
[1645199650212,0.07,39887.0,39883.0,0.7848]
[1645199650475,0.002,39889.0,39883.0,0.7848]
[1645199650476,0.07,39884.0,39883.0,0.7848]
[1645199651067,0.07,39884.0,39882.0,0.34863337]
[1645199651262,0.062757,39886.0,39882.0,0.46870193]
[1645199651464,0.062758,39884.0,39882.0,0.46870193]
[1645199651665,0.062758,39884.0,39876.0,0.23538882]
[1645199651666,0.062755,39882.0,39876.0,0.098682]
[1645199651867,0.062755,39882.0,39874.0,0.7523]
[1645199652067,0.171733,39881.0,39874.0,0.7423]
[1645199652266,0.35,39880.0,39874.0,0.6716]
[1645199652465,0.0462,39879.0,39874.0,0.6716]
[1645199652867,0.1151243,39879.0,39874.0,0.6716]
[1645199653064,0.1651243,39879.0,39874.0,0.6716]
[1645199654203,0.06277,39878.0,39874.0,0.6716]
[1645199654402,0.07,39875.0,39874.0,0.6716]
[1645199654605,0.07,39875.0,39873.0,0.0097]
[1645199654802,0.07,39874.0,39873.0,0.0097]
[1645199655002,0.07,39874.0,39865.0,0.098682]
[1645199655202,0.062775,39872.0,39863.0,0.001]
[1645199655403,0.0462,39871.0,39865.0,0.20301579]
[1645199655602,0.0462,39871.0,39870.0,0.26416916]
[1645199655802,0.1162,39871.0,39870.0,0.26416916]
[1645199656003,0.1182,39871.0,39870.0,0.26416916]
[1645199656207,0.1682,39871.0,39870.0,0.26416916]
[1645199656804,0.230976,39871.0,39870.0,0.26416916]
[1645199657405,0.228976,39871.0,39870.0,0.26416916]
[1645199657606,0.158976,39871.0,39870.0,0.26416916]
[1645199658456,0.158976,39871.0,39870.0,0.568079]
[1645199658653,0.09965546,39875.0,39870.0,0.618079]
[1645199658861,0.062756,39875.0,39874.0,0.20175715]
[1645199659053,0.001,39876.0,39874.0,0.50464999]
[1645199659254,0.001,39876.0,39874.0,0.20175715]
[1645199659455,0.03776141,39886.0,39874.0,0.39528561]
[1645199659654,0.062753,39876.0,39874.0,0.29660361]
[1645199659854,0.062753,39876.0,39875.0,0.098682]
[1645199660854,0.201032,39877.0,39876.0,1.2]
[1645199661055,0.271032,39877.0,39876.0,1.2]
[1645199661560,0.245521,39877.0,39871.0,0.0095]
[1645199661805,0.18832,39875.0,39871.0,0.0095]
[1645199662206,0.18832,39875.0,39873.0,0.098682]
[1645199662605,0.18832,39875.0,39871.0,0.13552219]
[1645199662807,0.18832,39875.0,39873.0,0.098682]
[1645199663006,0.251094,39875.0,39873.0,0.098682]
[1645199663206,0.062762,39874.0,39873.0,0.098682]
[1645199664406,0.062762,39874.0,39873.0,0.18893538]
[1645199664607,0.062762,39874.0,39873.0,0.098682]
[1645199664807,0.062762,39874.0,39873.0,0.148682]
[1645199665008,0.06276,39875.0,39873.0,0.44955666]
[1645199665206,0.11276,39875.0,39873.0,0.44955666]
[1645199665853,0.11276,39875.0,39873.0,0.148682]
[1645199666252,0.11276,39875.0,39873.0,0.44955666]
[1645199666452,0.11276,39875.0,39873.0,0.148682]
[1645199667852,0.11276,39875.0,39873.0,0.098682]
[1645199668252,0.11476,39875.0,39873.0,0.098682]
[1645199668552,0.0020247,39874.0,39873.0,0.098682]
[1645199668752,0.0020247,39874.0,39873.0,0.148682]
[1645199669409,0.0020247,39874.0,39873.0,0.098682]
[1645199669605,0.0020247,39874.0,39872.0,0.098682]
[1645199669806,0.06276,39873.0,39872.0,0.098682]
[1645199670404,0.11276,39873.0,39872.0,0.098682]
[1645199672105,0.10376,39873.0,39872.0,0.098682]
[1645199672708,0.10376,39873.0,39871.0,0.13552219]
[1645199672709,0.062763,39872.0,39871.0,0.0095]
[1645199672961,0.108963,39872.0,39863.0,0.001]
[1645199673155,0.188335,39866.0,39863.0,0.001]
[1645199673357,0.238335,39866.0,39863.0,0.001]
[1645199673555,0.238335,39866.0,39865.0,0.098682]
[1645199673755,0.16958831,39872.0,39866.0,1.5]
[1645199673956,0.16958831,39872.0,39871.0,0.098682]
[1645199674158,0.5,39872.0,39871.0,0.098682]
[1645199674559,0.66958831,39872.0,39871.0,0.088682]
[1645199674754,0.73234731,39872.0,39871.0,0.088682]
[1645199675355,0.78234731,39872.0,39871.0,0.088682]
[1645199675555,0.28234731,39872.0,39871.0,0.088682]
[1645199675756,0.21958831,39872.0,39871.0,0.088682]
[1645199675956,0.05,39872.0,39871.0,0.088682]
[1645199676556,0.2208233,39872.0,39871.0,0.088682]
[1645199677005,0.05,39872.0,39871.0,0.088682]
[1645199677309,0.81505499,39873.0,39871.0,0.088682]
[1645199677504,0.81505499,39873.0,39871.0,0.26313198]
[1645199677904,1.31505499,39873.0,39871.0,0.26313198]
[1645199678104,1.31505499,39873.0,39871.0,0.138682]
[1645199678304,0.1708233,39872.0,39871.0,0.088682]
[1645199678905,0.1658233,39872.0,39871.0,0.088682]
[1645199679706,0.810668,39873.0,39871.0,0.088682]
[1645199680206,0.003,39872.0,39871.0,0.088682]
[1645199680464,0.00203996,39872.0,39870.0,0.00112839]
[1645199680661,0.50203996,39872.0,39870.0,0.00112839]
[1645199681059,0.62676195,39872.0,39870.0,0.00112839]
[1645199681458,0.62472199,39872.0,39870.0,0.00112839]
[1645199682460,0.5,39872.0,39870.0,0.00112839]
[1645199683761,0.5,39872.0,39870.0,0.00302802]
[1645199684206,0.501,39872.0,39870.0,0.00302802]
[1645199685405,0.5,39872.0,39870.0,0.00302802]
[1645199685704,1.0,39872.0,39870.0,0.00302802]
[1645199686104,1.001,39872.0,39870.0,0.00302802]
[1645199686508,0.501,39872.0,39870.0,0.09171002]
[1645199686904,0.49939584,39872.0,39870.0,0.09171002]
[1645199687305,0.49839584,39872.0,39870.0,0.09171002]
[1645199687504,0.49829584,39872.0,39870.0,0.09171002]
[1645199687965,0.99829584,39872.0,39870.0,0.00302802]
[1645199688157,1.00129584,39872.0,39870.0,0.09171002]
[1645199688559,1.18962184,39872.0,39870.0,0.09171002]
[1645199688756,1.18962184,39872.0,39870.0,0.00302802]
[1645199690160,1.18862184,39872.0,39870.0,0.00302802]
[1645199690759,0.3,39871.0,39870.0,0.00302802]
[1645199690960,0.3462,39871.0,39870.0,0.00302802]
[1645199691159,0.0462,39871.0,39870.0,0.00302802]
[1645199692407,0.1162,39871.0,39870.0,0.00302802]
[1645199692807,0.1162,39871.0,39870.0,0.00802802]
[1645199694107,0.1172,39871.0,39870.0,0.00802802]
[1645199694305,0.28805066,39871.0,39870.0,0.00802802]
[1645199694708,0.2554822,39871.0,39870.0,0.00802802]
[1645199695008,0.25548126,39871.0,39870.0,0.00802802]
[1645199695207,0.21805066,39871.0,39870.0,0.00802802]
[1645199695469,0.17085066,39871.0,39870.0,0.00802802]
[1645199695659,0.24085066,39871.0,39870.0,0.00802802]
[1645199696260,0.24185066,39871.0,39870.0,0.00802802]
[1645199697861,0.24085066,39871.0,39870.0,0.00802802]
[1645199698060,0.24185066,39871.0,39870.0,0.00802802]
[1645199698468,0.4837275,39871.0,39870.0,0.005]
[1645199699309,0.4827275,39871.0,39870.0,0.005]
[1645199700610,1.0,39870.0,39863.0,0.001]
[1645199700810,0.062781,39865.0,39863.0,0.001]
[1645199701013,0.0462,39864.0,39863.0,0.001]
[1645199702811,0.0462,39864.0,39863.0,0.00069924]
[1645199703058,0.0462,39864.0,39861.0,0.01]
[1645199703260,0.562792,39862.0,39861.0,0.01]
[1645199703463,0.608992,39862.0,39861.0,0.01]
[1645199703863,0.658992,39862.0,39861.0,0.01]
[1645199704058,0.658992,39862.0,39861.0,0.098682]
[1645199704457,0.658992,39862.0,39861.0,0.088682]
[1645199705261,0.612792,39862.0,39861.0,0.088682]
[1645199705460,0.562792,39862.0,39861.0,0.088682]
[1645199706059,0.5,39862.0,39861.0,0.088682]
[1645199707109,0.545,39862.0,39861.0,0.088682]
[1645199707508,0.607772,39862.0,39860.0,4.14025338]
[1645199707707,0.607772,39862.0,39861.0,0.083682]
[1645199707910,0.607772,39862.0,39861.0,0.40130705]
[1645199708207,0.608772,39862.0,39861.0,0.40130705]
[1645199709407,0.607772,39862.0,39861.0,0.40130705]
[1645199710208,0.609772,39862.0,39861.0,0.40130705]
[1645199711058,0.609772,39862.0,39861.0,0.083682]
[1645199711463,0.607772,39862.0,39861.0,0.083682]
[1645199712062,0.557772,39862.0,39861.0,0.083682]
[1645199713160,0.062772,39862.0,39861.0,0.083682]
[1645199714609,0.062769,39865.0,39861.0,0.083682]
[1645199715609,0.062769,39865.0,39864.0,0.10329787]
[1645199715811,0.052,39867.0,39864.0,0.27723325]
[1645199716010,0.052,39867.0,39864.0,0.10329787]
[1645199716210,0.062764,39869.0,39866.0,0.17393538]
[1645199716513,0.062764,39869.0,39868.0,0.083682]
[1645199717113,0.66915623,39872.0,39869.0,1.6]
[1645199717310,0.66915623,39872.0,39871.0,0.083682]
[1645199718165,0.67215623,39872.0,39871.0,0.083682]
[1645199718666,0.73491423,39872.0,39871.0,0.083682]
[1645199718865,0.73491423,39872.0,39871.0,0.31397542]
[1645199719070,0.73491423,39872.0,39869.0,1.75300838]
[1645199719267,0.78491423,39872.0,39871.0,0.083682]
[1645199719466,0.78191423,39872.0,39871.0,0.083682]
[1645199720069,0.78191423,39872.0,39866.0,0.125502]
[1645199720269,0.78391423,39872.0,39866.0,0.125502]
[1645199720470,0.8894233,39872.0,39868.0,0.083682]
[1645199720870,0.8894233,39872.0,39866.0,0.125502]
[1645199721069,0.8894233,39872.0,39867.0,0.083682]
[1645199721269,0.8894233,39872.0,39867.0,0.133682]
[1645199721469,0.8874233,39872.0,39867.0,0.05]
[1645199722108,0.8874233,39872.0,39867.0,0.133682]
[1645199722309,0.8874233,39872.0,39867.0,0.05]
[1645199722310,0.78191423,39872.0,39867.0,0.05]
[1645199722509,0.78191423,39872.0,39871.0,0.083682]
[1645199722911,0.78191423,39872.0,39869.0,0.062761]
[1645199723312,0.78191423,39872.0,39870.0,0.00276801]
[1645199723510,0.78191423,39872.0,39871.0,0.083682]
[1645199724112,0.78191423,39872.0,39870.0,0.00276801]
[1645199726061,0.78191423,39872.0,39870.0,0.06552312]
[1645199726258,0.78191423,39872.0,39871.0,0.083682]
[1645199726461,0.78191423,39872.0,39870.0,0.00276801]
[1645199726462,0.73191423,39872.0,39870.0,0.00276801]
[1645199727258,0.73191423,39872.0,39870.0,0.08645001]
[1645199727458,0.73191423,39872.0,39870.0,0.00276801]
[1645199727660,0.11425659,39871.0,39870.0,0.08645001]
[1645199728059,0.78191423,39872.0,39870.0,0.08645001]
[1645199728259,0.002,39871.0,39870.0,0.00276801]
[1645199728459,0.00486009,39871.0,39867.0,0.05]
[1645199729712,0.00286009,39871.0,39867.0,0.05]
[1645199730115,0.062769,39869.0,39867.0,0.05]
[1645199732123,0.062769,39869.0,39868.0,0.17393538]
[1645199734560,0.062769,39869.0,39868.0,0.16393538]
[1645199735159,0.062769,39869.0,39868.0,0.083682]
[1645199735359,0.062769,39869.0,39868.0,0.16393538]
[1645199735760,0.062769,39869.0,39867.0,0.133682]
[1645199735964,0.062769,39869.0,39866.0,0.062767]
[1645199736264,0.0061503,39868.0,39862.0,0.0097]
[1645199736462,0.062791,39863.0,39861.0,0.75003587]
[1645199736908,0.12961857,39862.0,39861.0,0.75003587]
[1645199737109,0.32520357,39862.0,39861.0,0.75003587]
[1645199737314,0.32520357,39862.0,39861.0,0.28673435]
[1645199737315,0.41135387,39862.0,39861.0,0.28673435]
[1645199737511,0.49498965,39862.0,39861.0,0.28673435]
[1645199737710,0.49498965,39862.0,39860.0,3.90553064]
[1645199737912,0.07,39861.0,39860.0,3.76553064]
[1645199738111,0.1162,39861.0,39860.0,3.76553064]
[1645199738309,0.1223503,39861.0,39860.0,3.38868264]
[1645199738510,0.1223503,39861.0,39860.0,3.34868264]
[1645199738712,1.3912883,39861.0,39860.0,2.90396764]
[1645199738911,1.3912883,39861.0,39860.0,2.51196764]
[1645199738912,1.4912883,39861.0,39860.0,2.51196764]
[1645199739109,1.66210955,39861.0,39860.0,2.51196764]
[1645199739311,1.64779155,39861.0,39860.0,2.11512564]
[1645199739510,1.57779155,39861.0,39860.0,2.07912564]
[1645199739709,1.61523438,39861.0,39860.0,2.07912564]
[1645199739914,1.61523438,39861.0,39860.0,1.70229964]
[1645199739915,2.30368538,39861.0,39860.0,1.70229964]
[1645199740110,2.26624255,39861.0,39860.0,1.66628099]
[1645199740468,2.26624255,39861.0,39860.0,1.28948699]
[1645199740469,2.30368491,39861.0,39860.0,1.28948699]
[1645199740659,2.20168491,39861.0,39860.0,1.28948699]
[1645199741058,2.20168491,39861.0,39860.0,0.91269099]
[1645199741059,1.70168491,39861.0,39860.0,0.91269099]
[1645199741259,1.5,39860.0,39852.0,0.002]
[1645199741460,0.562807,39854.0,39852.0,0.002]
[1645199741659,0.0462,39853.0,39852.0,0.002]
[1645199744063,0.0462,39853.0,39851.0,0.001]
[1645199744309,0.10901687,39853.0,39849.0,0.001]
[1645199744511,0.0061503,39852.0,39849.0,0.001]
[1645199744710,0.109015,39851.0,39849.0,0.001]
[1645199745013,0.0561503,39850.0,39848.0,0.001]
[1645199745210,0.0462,39849.0,39848.0,0.001]
[1645199745512,0.0462,39849.0,39841.0,0.012]
[1645199745710,0.0523503,39849.0,39841.0,0.012]
[1645199745910,0.09771205,39842.0,39841.0,0.012]
[1645199746712,0.112825,39843.0,39841.0,0.35694057]
[1645199746913,0.112825,39843.0,39841.0,0.44062257]
[1645199747113,0.112825,39843.0,39841.0,0.007]
[1645199748165,0.159025,39843.0,39841.0,0.007]
[1645199748468,0.159025,39843.0,39840.0,0.002]
[1645199749464,0.160025,39843.0,39840.0,0.002]
[1645199749667,0.10663467,39845.0,39844.0,0.09071735]
[1645199749864,0.17663467,39845.0,39844.0,0.09071735]
[1645199750268,0.07,39845.0,39844.0,0.09071735]
[1645199750464,0.08365742,39845.0,39844.0,0.09071735]
[1645199750865,0.08365648,39845.0,39844.0,0.09071735]
[1645199751063,0.08365601,39845.0,39844.0,0.3545673]
[1645199751264,0.08365601,39845.0,39844.0,0.09071735]
[1645199751265,0.0462,39845.0,39844.0,0.09071735]
[1645199751465,0.08465554,39845.0,39844.0,0.09071735]
[1645199752716,0.08365554,39845.0,39844.0,0.09071735]
[1645199752914,0.08365554,39845.0,39844.0,0.08995422]
[1645199753114,0.08365554,39845.0,39844.0,0.08915302]
[1645199753317,0.08365507,39845.0,39844.0,0.08915302]
[1645199753613,0.08365507,39845.0,39844.0,0.08798391]
[1645199753614,0.08465507,39845.0,39844.0,0.08798391]
[1645199754814,0.08365507,39845.0,39844.0,0.08798391]
[1645199755463,0.09080537,39845.0,39844.0,0.08798391]
[1645199755857,0.09080537,39845.0,39843.0,0.063822]
[1645199756058,0.07,39844.0,39843.0,0.063822]
[1645199756258,0.17430229,39844.0,39843.0,0.063822]
[1645199756558,0.17430229,39844.0,39842.0,0.190465]
[1645199756758,0.07,39843.0,39842.0,0.190465]
[1645199757158,0.0761503,39843.0,39842.0,0.190465]
[1645199757359,0.0761503,39843.0,39841.0,0.253244]
[1645199757558,0.1162,39842.0,39841.0,0.253244]
[1645199758560,0.1223503,39842.0,39841.0,0.253244]
[1645199759413,0.1233503,39842.0,39841.0,0.253244]
[1645199760715,0.1172,39842.0,39841.0,0.253244]
[1645199760915,0.1162,39842.0,39841.0,1.13040617]
[1645199761316,0.1162,39842.0,39841.0,1.18040617]
[1645199761514,0.1152,39842.0,39841.0,1.18040617]
[1645199761715,0.1152,39842.0,39841.0,1.13040617]
[1645199762114,0.1152,39842.0,39841.0,0.75342317]
[1645199762715,0.1142,39842.0,39841.0,0.37644717]
[1645199763368,0.86682,39842.0,39841.0,0.62769117]
[1645199763566,0.94743842,39842.0,39841.0,0.37769117]
[1645199763766,1.04743842,39842.0,39841.0,0.37769117]
[1645199763966,0.94743842,39842.0,39841.0,0.37769117]
[1645199764167,1.1183672,39842.0,39841.0,0.37769117]
[1645199764366,0.7414792,39842.0,39841.0,0.42769117]
[1645199764771,0.57055042,39842.0,39841.0,0.42769117]
[1645199764967,0.57055042,39842.0,39841.0,0.37769117]
[1645199765168,0.57055042,39842.0,39841.0,0.00071817]
[1645199765572,0.57055042,39842.0,39840.0,0.063826]
[1645199765573,0.6,39841.0,39840.0,0.063826]
[1645199765770,0.7142,39841.0,39840.0,0.063826]
[1645199765969,0.85257506,39841.0,39840.0,0.063826]
[1645199766170,0.85257506,39841.0,39839.0,0.001]
[1645199766371,0.03544628,39840.0,39839.0,0.001]
[1645199766573,0.08164628,39840.0,39839.0,0.001]
[1645199766809,0.36024012,39840.0,39838.0,0.191478]
[1645199767009,0.0462,39840.0,39838.0,0.191478]
[1645199767208,0.21712878,39840.0,39838.0,0.191478]
[1645199767410,0.42456683,39839.0,39838.0,0.191478]
[1645199767708,0.53876683,39839.0,39838.0,0.003]
[1645199767908,0.82727083,39839.0,39837.0,0.189483]
[1645199768112,0.068,39838.0,39837.0,0.12565]
[1645199768307,0.068,39838.0,39837.0,0.061817]
[1645199768308,0.1142,39838.0,39837.0,0.061817]
[1645199768508,0.109036,39838.0,39836.0,0.002]
[1645199768709,0.068,39837.0,39836.0,0.002]
[1645199768908,0.1142,39837.0,39836.0,0.002]
[1645199769109,0.1142,39837.0,39836.0,0.064833]
[1645199769308,0.1142,39837.0,39836.0,0.114833]
[1645199769511,0.07,39837.0,39836.0,0.114833]
[1645199769709,0.07,39837.0,39836.0,0.064833]
[1645199769908,0.61307083,39839.0,39836.0,0.114833]
[1645199770214,0.1162,39837.0,39836.0,0.177659]
[1645199770482,0.61307083,39839.0,39836.0,0.064833]
[1645199770483,0.062836,39838.0,39836.0,0.064833]
[1645199770682,0.07,39837.0,39836.0,0.064833]
[1645199770877,0.1162,39837.0,39836.0,0.064833]
[1645199771078,0.06672785,39837.0,39836.0,0.064833]
[1645199771677,0.00327215,39837.0,39836.0,0.064833]
[1645199772677,0.04947215,39837.0,39836.0,0.064833]
[1645199772878,0.54947215,39837.0,39835.0,0.1905]
[1645199773077,0.00327215,39836.0,39835.0,0.1905]
[1645199773282,0.04947215,39836.0,39835.0,0.1905]
[1645199774078,0.23799615,39836.0,39834.0,0.002941]
[1645199774316,0.23799615,39836.0,39826.0,0.24911502]
[1645199774317,0.86621931,39835.0,39826.0,0.24911502]
[1645199774513,0.125711,39829.0,39821.0,0.00307929]
[1645199774712,0.28851135,39831.0,39821.0,0.00307929]
[1645199774713,0.00327215,39825.0,39821.0,0.00307929]
[1645199774915,0.47076683,39828.0,39821.0,0.062856]
[1645199774916,0.00327215,39822.0,39821.0,0.062856]
[1645199775112,0.00327215,39822.0,39819.0,0.179566]
[1645199775113,0.6,39821.0,39819.0,0.179566]
[1645199775314,0.118542,39822.0,39819.0,0.179566]
[1645199775512,0.0462,39821.0,39816.0,0.001]
[1645199775713,0.0557,39821.0,39816.0,0.001]
[1645199776211,0.188608,39820.0,39819.0,0.188566]
[1645199776412,0.234808,39820.0,39818.0,0.062865]
[1645199777012,0.234808,39820.0,39816.0,0.001]
[1645199777212,0.188598,39819.0,39816.0,0.001]
[1645199777613,0.188598,39819.0,39818.0,0.3526118]
[1645199777980,0.188598,39819.0,39818.0,0.4862938]
[1645199778174,0.188598,39819.0,39818.0,0.8491588]
[1645199778372,0.06286,39821.0,39818.0,0.97306736]
[1645199778575,0.06286,39821.0,39818.0,0.5491588]
[1645199778771,0.10906,39821.0,39818.0,0.5291588]
[1645199778970,0.10906,39821.0,39818.0,0.78826953]
[1645199779371,0.10906,39821.0,39820.0,0.16393538]
[1645199779572,0.10906,39821.0,39820.0,0.21393538]
[1645199779771,0.10906,39821.0,39820.0,0.24159203]
[1645199779971,0.42556683,39824.0,39820.0,0.10791003]
[1645199780174,0.42556683,39824.0,39821.0,0.062854]
[1645199780472,0.42556683,39824.0,39820.0,0.15791003]
[1645199780772,0.42556683,39824.0,39820.0,0.083682]
[1645199780773,0.188569,39822.0,39820.0,0.083682]
[1645199780976,0.188569,39822.0,39817.0,0.18858]
[1645199780977,0.188569,39822.0,39818.0,0.96581093]
[1645199781710,0.062865,39819.0,39818.0,0.96581093]
[1645199781911,0.062865,39819.0,39818.0,1.29552801]
[1645199782108,0.062865,39819.0,39818.0,1.23267101]
[1645199782309,0.42456683,39824.0,39819.0,0.55]
[1645199782310,0.29890783,39824.0,39819.0,0.55]
[1645199782508,0.29990783,39824.0,39820.0,0.3]
[1645199782708,0.29990783,39824.0,39820.0,0.35]
[1645199782907,0.29990783,39824.0,39823.0,0.1337209]
[1645199783108,0.29990783,39824.0,39823.0,0.2674029]
[1645199783109,0.48846583,39824.0,39823.0,0.2674029]
[1645199783309,0.48846583,39824.0,39823.0,0.133682]
[1645199783713,0.48846583,39824.0,39820.0,0.06553932]
[1645199783911,0.48746583,39824.0,39820.0,0.06553932]
[1645199784112,0.48746583,39824.0,39823.0,0.083682]
[1645199784312,0.48746583,39824.0,39823.0,0.19792286]
[1645199784511,0.48846583,39824.0,39823.0,0.19792286]
[1645199785311,0.48972345,39824.0,39820.0,0.06553932]
[1645199785564,0.48846583,39824.0,39821.0,0.05]
[1645199785765,0.00125766,39822.0,39820.0,0.47839532]
[1645199786064,0.48746583,39824.0,39820.0,0.05268632]
[1645199786065,0.00125762,39821.0,39820.0,0.05268632]
[1645199786265,0.00125762,39821.0,39820.0,0.00268632]
[1645199788162,0.00125762,39821.0,39820.0,0.59369823]
[1645199788361,0.53366583,39824.0,39821.0,0.85]
[1645199788362,0.22515208,39824.0,39821.0,0.85]
[1645199788561,0.22515208,39824.0,39821.0,0.9]
[1645199788762,0.03662208,39825.0,39822.0,0.9]
[1645199788964,0.5,39824.0,39822.0,0.9]
[1645199789209,0.03662208,39825.0,39823.0,0.12623532]
[1645199789409,0.00201453,39824.0,39822.0,0.15]
[1645199789609,0.00201453,39823.0,39822.0,0.15]
[1645199789809,0.07,39823.0,39822.0,0.05]
[1645199790412,0.07,39823.0,39822.0,0.16581059]
[1645199790613,0.07,39823.0,39822.0,0.11581059]
[1645199791311,0.07,39823.0,39821.0,0.062847]
[1645199791516,0.062859,39823.0,39821.0,0.062847]
[1645199792115,0.062859,39823.0,39818.0,0.56805893]
[1645199792116,0.0523503,39822.0,39818.0,0.56805893]
[1645199792314,0.125745,39820.0,39818.0,0.56805893]
[1645199792512,0.125745,39820.0,39818.0,0.53805893]
[1645199792513,0.862423,39819.0,39818.0,0.53805893]
[1645199792710,0.862423,39819.0,39818.0,0.16081593]
[1645199793357,0.862423,39819.0,39815.0,0.03610762]
[1645199793358,0.4,39818.0,39815.0,0.03610762]
[1645199793557,0.234811,39817.0,39815.0,0.03610762]
[1645199793756,0.234811,39817.0,39815.0,0.03603093]
[1645199794459,0.188611,39817.0,39815.0,0.03603093]
[1645199794659,0.188611,39817.0,39816.0,0.63844011]
[1645199794859,0.627751,39819.0,39817.0,1.6]
[1645199795161,0.00641131,39823.0,39821.0,0.08025338]
[1645199795162,0.00541131,39823.0,39821.0,0.08025338]
[1645199795363,0.05,39829.0,39821.0,0.05]
[1645199795559,0.0462,39830.0,39821.0,0.05]
[1645199795759,0.0462,39830.0,39821.0,0.27044902]
[1645199795959,0.001,39823.0,39821.0,0.27044902]
[1645199796159,0.063853,39823.0,39821.0,0.27044902]
[1645199796361,0.063853,39823.0,39822.0,0.11194636]
[1645199796561,0.43178192,39837.0,39822.0,0.11194636]
[1645199796562,0.0061503,39835.0,39822.0,0.11194636]
[1645199796821,0.30455486,39832.0,39822.0,0.46194636]
[1645199797017,0.0061503,39829.0,39822.0,0.11194636]
[1645199797217,0.188558,39824.0,39820.0,0.55141]
[1645199797416,0.188558,39824.0,39820.0,0.22141]
[1645199797816,0.0523503,39823.0,39821.0,0.05]
[1645199798319,0.062859,39822.0,39821.0,0.05]
[1645199799817,0.062859,39822.0,39820.0,0.158563]
[1645199800477,0.062859,39822.0,39820.0,0.221423]
[1645199800768,0.062859,39822.0,39821.0,0.05]
[1645199801368,0.062859,39822.0,39821.0,0.18381552]
[1645199801668,0.062859,39822.0,39821.0,0.48381552]
[1645199801867,0.063859,39822.0,39821.0,0.18381552]
[1645199802267,0.188558,39824.0,39821.0,0.30951752]
[1645199802667,0.062859,39822.0,39821.0,0.30951752]
[1645199803068,0.062859,39822.0,39821.0,0.175702]
[1645199803268,0.062859,39822.0,39821.0,0.05282157]
[1645199803869,0.063859,39822.0,39821.0,0.05282157]
[1645199804309,0.063859,39822.0,39821.0,0.04882157]
[1645199804508,0.188558,39824.0,39821.0,0.04882157]
[1645199807214,0.07,39825.0,39824.0,0.188557]
[1645199808059,0.071,39825.0,39824.0,0.188557]
[1645199808258,0.071,39825.0,39824.0,0.58499321]
[1645199808461,0.001,39825.0,39824.0,0.58499321]
[1645199809259,0.30916227,39826.0,39824.0,0.58499321]
[1645199809561,0.3088213,39826.0,39825.0,0.49518098]
[1645199809763,0.188573,39826.0,39825.0,0.49518098]
[1645199809961,0.001,39831.0,39827.0,1.6]
[1645199810164,0.17099492,39840.0,39832.0,0.08025338]
[1645199810361,0.5,39834.0,39832.0,0.20591038]
[1645199810562,0.5,39834.0,39833.0,0.26892639]
[1645199810759,0.17099492,39840.0,39833.0,0.68174814]
[1645199810961,0.17099492,39840.0,39833.0,0.56648663]
[1645199811163,0.145923,39838.0,39836.0,0.08025338]
[1645199811360,0.145923,39838.0,39833.0,0.86648663]
[1645199811361,0.0831,39838.0,39833.0,0.86648663]
[1645199811559,0.0831,39838.0,39833.0,0.51648663]
[1645199812011,0.0841,39838.0,39833.0,0.51648663]
[1645199812809,0.062831,39835.0,39833.0,0.81648663]
[1645199813009,0.062831,39835.0,39833.0,0.51648663]
[1645199814017,0.0841,39838.0,39835.0,1.6]
[1645199814214,0.001,39840.0,39837.0,1.82906386]
[1645199814412,0.001,39840.0,39838.0,0.3]
[1645199814612,0.03359592,39849.0,39839.0,1.6]
[1645199814812,0.03359592,39849.0,39840.0,0.412804]
[1645199815015,0.03359592,39849.0,39848.0,0.55598635]
[1645199815312,0.7228,39858.0,39851.0,0.08025338]
[1645199815570,0.7228,39862.0,39857.0,0.08025338]
[1645199815968,0.7228,39862.0,39857.0,0.062788]
[1645199816164,0.7228,39862.0,39858.0,0.10932445]
[1645199816368,0.7228,39862.0,39859.0,0.3]
[1645199816565,0.7228,39862.0,39858.0,0.2523661]
[1645199816869,0.7228,39862.0,39857.0,0.062788]
[1645199816870,0.062797,39859.0,39857.0,0.062788]
[1645199817066,0.062797,39859.0,39853.0,0.062807]
[1645199817264,0.07278788,39861.0,39851.0,0.3]
[1645199817464,0.07278788,39861.0,39852.0,0.08025338]
[1645199817864,0.07378788,39861.0,39852.0,0.13014202]
[1645199818064,0.18841,39857.0,39851.0,0.362805]
[1645199818866,0.18841,39857.0,39852.0,0.125608]
[1645199819065,0.18841,39857.0,39853.0,0.1005607]